bitfinex/quotes_BTCUSD_20250628
["timestamp","ask_amount","ask_price","bid_price","bid_amount"]
[1751135813116,1.6644183,107350.0,107340.0,0.08600375]
[1751135813331,1.8528983,107350.0,107340.0,0.08600375]
[1751135819224,1.8364983,107350.0,107340.0,0.08600375]
[1751135819811,1.8528983,107350.0,107340.0,0.08600375]
[1751135834209,1.8685983,107350.0,107340.0,0.08600375]
[1751135836299,1.89072432,107350.0,107340.0,0.08600375]
[1751135837351,1.8685983,107350.0,107340.0,0.08600375]
[1751135847389,1.8685983,107350.0,107340.0,0.08316375]
[1751135848440,1.8528983,107350.0,107340.0,0.08316375]
[1751135849391,1.12435444,107350.0,107340.0,0.08316375]
[1751135849612,1.8528983,107350.0,107340.0,0.08316375]
[1751135868725,1.9728983,107350.0,107340.0,0.08316375]
[1751135880947,1.98618515,107350.0,107340.0,0.08316375]
[1751135881163,1.9728983,107350.0,107340.0,0.08316375]
[1751135882036,1.9564983,107350.0,107340.0,0.08316375]
[1751135890293,1.97103915,107350.0,107340.0,0.08316375]
[1751135913334,1.24249529,107350.0,107340.0,0.08316375]
[1751135913463,1.97103915,107350.0,107340.0,0.08316375]
[1751135914071,1.98713915,107350.0,107340.0,0.08316375]
[1751135945823,2.00576042,107350.0,107340.0,0.08316375]
[1751135946382,1.98713915,107350.0,107340.0,0.08316375]
[1751135965174,1.97103915,107350.0,107340.0,0.08316375]
[1751136008098,1.24249529,107350.0,107340.0,0.08316375]
[1751136008324,1.97103915,107350.0,107340.0,0.08316375]
[1751136011841,1.98643915,107350.0,107340.0,0.08316375]
[1751136016368,1.64643915,107350.0,107340.0,0.08316375]
[1751136016571,1.98643915,107350.0,107340.0,0.08316375]
[1751136032440,1.79795915,107350.0,107340.0,0.08316375]
[1751136032666,1.98607915,107350.0,107340.0,0.08316375]
[1751136038381,1.97067915,107350.0,107340.0,0.08316375]
[1751136048142,1.98637915,107350.0,107340.0,0.08316375]
[1751136082011,1.79825915,107350.0,107340.0,0.08316375]
[1751136082169,1.98629915,107350.0,107340.0,0.08316375]
[1751136088109,2.00179915,107350.0,107340.0,0.08316375]
[1751136101312,1.98629915,107350.0,107340.0,0.08316375]
[1751136102573,2.00269915,107350.0,107340.0,0.08316375]
[1751136105984,1.98629915,107350.0,107340.0,0.08316375]
[1751136122697,1.98699915,107350.0,107340.0,0.08316375]
[1751136144936,2.45963116,107350.0,107340.0,0.08316375]
[1751136145141,2.49137232,107350.0,107340.0,0.08316375]
[1751136145363,2.5881452,107350.0,107340.0,0.08316375]
[1751136145568,2.59467154,107350.0,107340.0,0.08316375]
[1751136147073,2.23039961,107350.0,107340.0,0.08316375]
[1751136147491,2.13763953,107350.0,107340.0,0.08316375]
[1751136149182,1.22105567,107350.0,107340.0,0.08316375]
[1751136149393,2.11302313,107350.0,107340.0,0.08316375]
[1751136160777,0.19563984,107340.0,107330.0,0.0004]
[1751136160999,1.19738378,107340.0,107330.0,0.00044588]
[1751136161209,1.22912494,107340.0,107330.0,0.00044588]
[1751136161931,1.21482494,107340.0,107330.0,0.00044588]
[1751136163705,1.24280194,107340.0,107330.0,0.00044588]
[1751136164836,1.21106078,107340.0,107330.0,0.00044588]
[1751136169124,1.19576078,107340.0,107330.0,0.00044588]
[1751136175850,1.21206078,107340.0,107330.0,0.00044588]
[1751136178301,1.24380194,107340.0,107330.0,0.00044588]
[1751136180454,1.22750194,107340.0,107330.0,0.00044588]
[1751136180670,0.46721692,107340.0,107330.0,0.01694588]
[1751136180923,1.19576078,107340.0,107330.0,0.01694588]
[1751136181368,1.19576078,107340.0,107330.0,0.00044588]
[1751136181584,1.19576078,107340.0,107330.0,0.01694588]
[1751136182900,1.19576078,107340.0,107330.0,0.00044588]
[1751136183773,1.19576078,107340.0,107330.0,0.01694588]
[1751136187590,1.19576078,107340.0,107330.0,0.00044588]
[1751136194054,1.21136078,107340.0,107330.0,0.00044588]
[1751136194470,1.24948078,107340.0,107330.0,0.00044588]
[1751136199427,1.47308078,107340.0,107330.0,0.00044588]
[1751136204505,1.83735271,107340.0,107330.0,0.00044588]
[1751136211077,1.64939271,107340.0,107330.0,0.00044588]
[1751136211333,1.83735271,107340.0,107330.0,0.00044588]
[1751136218224,1.47308078,107340.0,107330.0,0.00044588]
[1751136220846,1.45748078,107340.0,107330.0,0.00044588]
[1751136226545,1.82175271,107340.0,107330.0,0.00044588]
[1751136227627,1.84307729,107340.0,107330.0,0.00044588]
[1751136227818,1.82175271,107340.0,107330.0,0.00044588]
[1751136229128,1.83795271,107340.0,107330.0,0.00044588]
[1751136230860,1.47368078,107340.0,107330.0,0.00044588]
[1751136264690,0.74513692,107340.0,107330.0,0.00044588]
[1751136264867,1.45748078,107340.0,107330.0,0.00044588]
[1751136286715,1.26952078,107340.0,107330.0,0.00044588]
[1751136286872,1.45756078,107340.0,107330.0,0.01624588]
[1751136304264,1.45756078,107340.0,107330.0,0.00044588]
[1751136323215,1.45744078,107340.0,107330.0,0.00044588]
[1751136324938,1.26952078,107340.0,107330.0,0.00044588]
[1751136325421,1.45744078,107340.0,107330.0,0.00044588]
[1751136325831,1.26952078,107340.0,107330.0,0.00044588]
[1751136326263,1.45744078,107340.0,107330.0,0.00044588]
[1751136327105,1.26952078,107340.0,107330.0,0.00044588]
[1751136327521,1.45744078,107340.0,107330.0,0.00044588]
[1751136328148,1.26952078,107340.0,107330.0,0.00044588]
[1751136328363,1.45744078,107340.0,107330.0,0.00044588]
[1751136328568,1.47304078,107340.0,107330.0,0.00044588]
[1751136339102,1.83731271,107340.0,107330.0,0.00044588]
[1751136340986,1.47304078,107340.0,107330.0,0.00044588]
[1751136345493,1.83731271,107340.0,107330.0,0.00044588]
[1751136345935,1.47304078,107340.0,107330.0,0.00044588]
[1751136353487,1.45744078,107340.0,107330.0,0.00044588]
[1751136359376,0.72889692,107340.0,107330.0,0.00044588]
[1751136359619,1.45744078,107340.0,107330.0,0.00044588]
[1751136369681,1.82171271,107340.0,107330.0,0.00044588]
[1751136369897,1.83721271,107340.0,107330.0,0.00044588]
[1751136371431,2.25427614,107340.0,107330.0,0.00044588]
[1751136371668,2.29809341,107340.0,107330.0,0.00044588]
[1751136371885,2.30462305,107340.0,107330.0,0.00044588]
[1751136372097,2.32691221,107340.0,107330.0,0.00044588]
[1751136372305,2.30462146,107340.0,107330.0,0.00044588]
[1751136372520,2.25929813,107340.0,107330.0,0.00044588]
[1751136372734,2.26329813,107340.0,107330.0,0.00044588]
[1751136373385,2.25677008,107340.0,107330.0,0.00044588]
[1751136374472,2.25577008,107340.0,107330.0,0.00044588]
[1751136374688,2.26077008,107340.0,107330.0,0.00044588]
[1751136383235,2.24527008,107340.0,107330.0,0.00044588]
[1751136385662,2.26037008,107340.0,107330.0,0.00044588]
[1751136386361,2.24527008,107340.0,107330.0,0.00044588]
[1751136401354,2.27409219,107340.0,107330.0,0.00044588]
[1751136423199,2.25859219,107340.0,107330.0,0.00044588]
[1751136428114,2.27359219,107340.0,107330.0,0.00044588]
[1751136434070,2.27360362,107340.0,107330.0,0.00044588]
[1751136437888,2.2670727,107340.0,107330.0,0.00044588]
[1751136450426,2.27360739,107340.0,107330.0,0.00044588]
[1751136455463,2.27360608,107340.0,107330.0,0.00044588]
[1751136465313,2.28940608,107340.0,107330.0,0.00044588]
[1751136466250,2.38216616,107340.0,107330.0,0.00044588]
[1751136466695,0.98598288,107330.0,107320.0,0.08864188]
[1751136466999,1.22850296,107330.0,107320.0,0.08864188]
[1751136467425,1.25648296,107330.0,107320.0,0.08864188]
[1751136468820,1.37748296,107330.0,107320.0,0.08864188]
[1751136469259,1.36198296,107330.0,107320.0,0.08864188]
[1751136469691,1.37111482,107330.0,107320.0,0.08864188]
[1751136470143,1.38731482,107330.0,107320.0,0.08864188]
[1751136471227,1.38931482,107330.0,107320.0,0.08864188]
[1751136475108,1.4820749,107330.0,107320.0,0.08864188]
[1751136475316,1.38931482,107330.0,107320.0,0.08864188]
[1751136475808,1.42739482,107330.0,107320.0,0.08864188]
[1751136480668,1.65099482,107330.0,107320.0,0.08864188]
[1751136481590,1.64979482,107330.0,107320.0,0.08864188]
[1751136483086,2.1351441,107330.0,107320.0,0.08864188]
[1751136489783,2.04238402,107330.0,107320.0,0.08864188]
[1751136490611,1.67811209,107330.0,107320.0,0.08864188]
[1751136494392,2.04238402,107330.0,107320.0,0.08864188]
[1751136494943,2.04238402,107330.0,107320.0,0.07341188]
[1751136495133,2.05818402,107330.0,107320.0,0.07341188]
[1751136495338,2.05818402,107330.0,107320.0,0.05395188]
[1751136495542,2.05818402,107330.0,107320.0,0.04466188]
[1751136495805,2.1509441,107330.0,107320.0,0.03537188]
[1751136496013,2.05818402,107330.0,107320.0,0.01977001]
[1751136496650,2.05818402,107330.0,107320.0,0.00201002]
[1751136499322,2.04238402,107330.0,107320.0,0.00201002]
[1751136501219,2.05868402,107330.0,107320.0,0.00201002]
[1751136504158,0.21021715,107320.0,107310.0,0.017]
[1751136504367,1.57729312,107320.0,107310.0,0.01704588]
[1751136504812,1.59629312,107320.0,107310.0,0.01704588]
[1751136506269,1.59629312,107320.0,107310.0,0.00044588]
[1751136506520,1.61209312,107320.0,107310.0,0.00044588]
[1751136507984,1.7048532,107320.0,107310.0,0.00044588]
[1751136508491,1.61209312,107320.0,107310.0,0.00044588]
[1751136508920,1.95209312,107320.0,107310.0,0.00044588]
[1751136520227,1.93629312,107320.0,107310.0,0.00044588]
[1751136520840,1.95219312,107320.0,107310.0,0.00044588]
[1751136522751,1.93629312,107320.0,107310.0,0.00044588]
[1751136525776,2.0290532,107320.0,107310.0,0.00044588]
[1751136526428,1.93629312,107320.0,107310.0,0.00044588]
[1751136528571,1.97449312,107320.0,107310.0,0.00044588]
[1751136540240,1.97449312,107320.0,107310.0,0.03274588]
[1751136540241,1.78653312,107320.0,107310.0,0.03274588]
[1751136540455,1.97445312,107320.0,107310.0,0.03274588]
[1751136541340,1.78653312,107320.0,107310.0,0.03274588]
[1751136541552,1.97453312,107320.0,107310.0,0.03274588]
[1751136542163,1.78653312,107320.0,107310.0,0.03274588]
[1751136542366,1.97465312,107320.0,107310.0,0.03274588]
[1751136542570,1.78653312,107320.0,107310.0,0.03274588]
[1751136542849,1.97465312,107320.0,107310.0,0.03274588]
[1751136544654,1.78653312,107320.0,107310.0,0.03274588]
[1751136544853,1.97465312,107320.0,107310.0,0.03274588]
[1751136545470,1.78653312,107320.0,107310.0,0.03274588]
[1751136545673,1.94291302,107320.0,107310.0,0.03274588]
[1751136545883,1.57864109,107320.0,107310.0,0.03274588]
[1751136546380,1.39052109,107320.0,107310.0,0.03274588]
[1751136547039,1.57868109,107320.0,107310.0,0.03274588]
[1751136547196,1.75479302,107320.0,107310.0,0.03274588]
[1751136547391,1.94295302,107320.0,107310.0,0.03274588]
[1751136547627,1.75479302,107320.0,107310.0,0.03274588]
[1751136547799,1.94295302,107320.0,107310.0,0.03274588]
[1751136549809,1.42864109,107320.0,107310.0,0.03274588]
[1751136550016,1.57864109,107320.0,107310.0,0.03274588]
[1751136550236,1.94291302,107320.0,107310.0,0.03274588]
[1751136551343,1.57864109,107320.0,107310.0,0.03274588]
[1751136551784,1.39052109,107320.0,107310.0,0.03274588]
[1751136551989,1.57868109,107320.0,107310.0,0.03274588]
[1751136553063,1.94291302,107320.0,107310.0,0.03274588]
[1751136555925,1.57864109,107320.0,107310.0,0.03274588]
[1751136557785,0.66197723,107320.0,107310.0,0.03274588]
[1751136558002,1.57864109,107320.0,107310.0,0.03274588]
[1751136558988,1.94291302,107320.0,107310.0,0.03274588]
[1751136559963,1.57864109,107320.0,107310.0,0.03274588]
[1751136566381,1.94291302,107320.0,107310.0,0.03274588]
[1751136567610,1.75479302,107320.0,107310.0,0.03274588]
[1751136567815,1.94295302,107320.0,107310.0,0.03274588]
[1751136569159,1.94295302,107320.0,107310.0,0.01634588]
[1751136573093,1.75479302,107320.0,107310.0,0.01634588]
[1751136573408,1.94295302,107320.0,107310.0,0.01634588]
[1751136575408,0.85013723,107320.0,107310.0,0.01634588]
[1751136575591,1.94295302,107320.0,107310.0,0.01634588]
[1751136576006,2.16659302,107320.0,107310.0,0.01634588]
[1751136576777,2.16659302,107320.0,107310.0,0.00044588]
[1751136593888,2.16639302,107320.0,107310.0,0.00044588]
[1751136604374,2.18149302,107320.0,107310.0,0.00044588]
[1751136606547,2.19709302,107320.0,107310.0,0.00044588]
[1751136610794,2.18149302,107320.0,107310.0,0.00044588]
[1751136648767,2.19759302,107320.0,107310.0,0.00044588]
[1751136650564,2.18149302,107320.0,107310.0,0.00044588]
[1751136654558,2.19759302,107320.0,107310.0,0.00044588]
[1751136658828,2.00963302,107320.0,107310.0,0.00044588]
[1751136659035,2.19751302,107320.0,107310.0,0.00044588]
[1751136661235,2.18141302,107320.0,107310.0,0.00044588]
[1751136673562,1.99353302,107320.0,107310.0,0.00044588]
[1751136673750,2.18141302,107320.0,107310.0,0.00044588]
[1751136673925,1.99353302,107320.0,107310.0,0.00044588]
[1751136674133,2.18141302,107320.0,107310.0,0.00044588]
[1751136675362,1.99353302,107320.0,107310.0,0.00044588]
[1751136675613,2.18141302,107320.0,107310.0,0.00044588]
[1751136676424,2.18137302,107320.0,107310.0,0.00044588]
[1751136677558,1.99353302,107320.0,107310.0,0.00044588]
[1751136677926,2.18137302,107320.0,107310.0,0.00044588]
[1751136681368,1.99353302,107320.0,107310.0,0.00044588]
[1751136682000,2.18137302,107320.0,107310.0,0.00044588]
[1751136682211,1.99353302,107320.0,107310.0,0.00044588]
[1751136682451,2.18137302,107320.0,107310.0,0.00044588]
[1751136755014,2.16627302,107320.0,107310.0,0.00044588]
[1751136767740,2.18147302,107320.0,107310.0,0.00044588]
[1751136789727,2.21309138,107320.0,107310.0,0.00044588]
[1751136790143,2.19789138,107320.0,107310.0,0.00044588]
[1751136793989,2.21429138,107320.0,107310.0,0.00044588]
[1751136794198,2.23069138,107320.0,107310.0,0.00044588]
[1751136795404,2.19907302,107320.0,107310.0,0.00044588]
[1751136796114,2.18267302,107320.0,107310.0,0.00044588]
[1751136820746,2.2913331,107320.0,107310.0,0.00044588]
[1751136821076,2.32095146,107320.0,107310.0,0.00044588]
[1751136822079,2.32295146,107320.0,107310.0,0.00044588]
[1751136822709,2.32395146,107320.0,107310.0,0.00044588]
[1751136822919,2.23119138,107320.0,107310.0,0.00044588]
[1751136836884,2.21529138,107320.0,107310.0,0.00044588]
[1751136842261,2.19889138,107320.0,107310.0,0.00044588]
[1751136843832,2.19889138,107320.0,107310.0,0.01614588]
[1751136853501,2.19889138,107320.0,107310.0,0.00044588]
[1751136857992,2.19889138,107320.0,107310.0,0.01604588]
[1751136859313,2.19889138,107320.0,107310.0,0.03124588]
[1751136860953,2.19889138,107320.0,107310.0,0.01604588]
[1751136867441,2.19889138,107320.0,107310.0,0.00044588]
[1751136867885,2.19889138,107320.0,107310.0,0.01604588]
[1751136871519,1.10607559,107320.0,107310.0,0.01604588]
[1751136871730,2.19889138,107320.0,107310.0,0.01604588]
[1751136872140,2.19889138,107320.0,107310.0,0.00044588]
[1751136894500,2.21439138,107320.0,107310.0,0.00044588]
[1751136906124,2.02655138,107320.0,107310.0,0.00044588]
[1751136906320,2.21419138,107320.0,107310.0,0.00044588]
[1751136907990,1.80480109,107320.0,107310.0,0.03144588]
[1751136908394,2.16907302,107320.0,107310.0,0.03144588]
[1751136908599,1.80480109,107320.0,107310.0,0.03144588]
[1751136908801,2.16907302,107320.0,107310.0,0.03144588]
[1751136919769,1.80480109,107320.0,107310.0,0.03144588]
[1751136928350,2.16907302,107320.0,107310.0,0.03144588]
[1751136929614,1.80480109,107320.0,107310.0,0.03144588]
[1751136931124,1.65516109,107320.0,107310.0,0.01574588]
[1751136931331,1.78576109,107320.0,107310.0,0.03144588]
[1751136935176,1.05721723,107320.0,107310.0,0.03144588]
[1751136935377,1.78576109,107320.0,107310.0,0.03144588]
[1751136941382,1.05721723,107320.0,107310.0,0.01574588]
[1751136941586,1.78576109,107320.0,107310.0,0.01574588]
[1751136947390,0.43576008,107320.0,107310.0,0.2021218]
[1751136947597,0.50734915,107320.0,107310.0,0.24567712]
[1751136947746,1.03053848,107320.0,107310.0,0.24567712]
[1751136948151,0.83362108,107320.0,107310.0,0.24567712]
[1751136948357,1.36122108,107320.0,107310.0,0.24567712]
[1751136948927,1.17362108,107320.0,107310.0,0.24567712]
[1751136949115,0.64199453,107320.0,107310.0,0.24567712]
[1751136949346,1.00626646,107320.0,107310.0,0.24567712]
[1751136949701,1.01558386,107320.0,107310.0,0.24567712]
[1751136953751,1.00626646,107320.0,107310.0,0.24567712]
[1751136954879,1.01558395,107320.0,107310.0,0.24567712]
[1751136956144,1.00626646,107320.0,107310.0,0.24567712]
[1751136958280,0.99694915,107320.0,107310.0,0.24567712]
[1751136959110,1.00626638,107320.0,107310.0,0.24567712]
[1751136959338,0.80003201,107320.0,107310.0,0.24567712]
[1751136959550,0.28332008,107320.0,107310.0,0.24567712]
[1751136959777,0.04096,107320.0,107310.0,0.24567712]
[1751136960433,0.04096,107320.0,107310.0,0.60994905]
[1751136961133,0.04096,107320.0,107310.0,0.75962905]
[1751136963054,0.003,107320.0,107310.0,0.75962905]
[1751136963947,0.003,107320.0,107310.0,0.60994905]
[1751136964188,0.002,107320.0,107310.0,0.75974905]
[1751136965473,0.37342361,107340.0,107330.0,0.21429132]
[1751136965688,0.46618369,107340.0,107330.0,0.39555132]
[1751136967073,0.46618369,107340.0,107330.0,0.39755132]
[1751136967289,0.46618369,107340.0,107330.0,0.39855132]
[1751136971124,0.10191176,107340.0,107330.0,0.39855132]
[1751136971327,0.46618369,107340.0,107330.0,0.39855132]
[1751136974298,0.45703201,107340.0,107330.0,0.39855132]
[1751136974506,0.09276008,107340.0,107330.0,0.39855132]
[1751136974712,0.45703201,107340.0,107330.0,0.39855132]
[1751136976873,0.36427193,107340.0,107330.0,0.39855132]
[1751136978877,0.36427193,107340.0,107330.0,0.24879132]
[1751136979090,0.36427193,107340.0,107330.0,0.39847132]
[1751136979938,0.72854386,107340.0,107330.0,0.39847132]
[1751136980673,0.36427193,107340.0,107330.0,0.39847132]
[1751136984375,1.16581947,107350.0,107340.0,0.21427135]
[1751136984595,1.62285148,107350.0,107340.0,0.21427135]
[1751136985086,1.60422215,107350.0,107340.0,0.21427135]
[1751136985298,1.61353677,107350.0,107340.0,0.21427135]
[1751136987279,1.62285157,107350.0,107340.0,0.21427135]
[1751136987683,1.62285148,107350.0,107340.0,0.21427135]
[1751136988060,1.61353677,107350.0,107340.0,0.21427135]
[1751136989009,1.60422215,107350.0,107340.0,0.21427135]
[1751136989438,1.58882215,107350.0,107340.0,0.21427135]
[1751136990978,1.43914215,107350.0,107340.0,0.21427135]
[1751136991187,1.58874215,107350.0,107340.0,0.21427135]
[1751136992560,1.22447022,107350.0,107340.0,0.21427135]
[1751136992805,1.58874215,107350.0,107340.0,0.21427135]
[1751137002781,1.59805669,107350.0,107340.0,0.21427135]
[1751137003721,1.58874215,107350.0,107340.0,0.21427135]
[1751137012264,1.59805669,107350.0,107340.0,0.21427135]
[1751137012448,1.58874215,107350.0,107340.0,0.21427135]
[1751137015910,1.40118215,107350.0,107340.0,0.21427135]
[1751137016127,1.34642207,107350.0,107340.0,0.24637135]
[1751137016332,0.98215014,107350.0,107340.0,0.24637135]
[1751137016543,0.94415014,107350.0,107340.0,0.24637135]
[1751137016749,1.34642207,107350.0,107340.0,0.24637135]
[1751137017385,0.64215014,107350.0,107340.0,0.24637135]
[1751137017592,0.64215014,107350.0,107340.0,0.39593135]
[1751137019789,1.00642207,107350.0,107340.0,0.39593135]
[1751137029716,0.96842207,107350.0,107340.0,0.39593135]
[1751137029920,0.60415014,107350.0,107340.0,0.39593135]
[1751137034720,0.60415014,107350.0,107340.0,0.37963135]
[1751137037974,0.94415014,107350.0,107340.0,0.37963135]
[1751137042358,0.94415014,107350.0,107340.0,0.23007135]
[1751137042579,0.94415014,107350.0,107340.0,0.37959135]
[1751137043952,0.94415014,107350.0,107340.0,0.23007135]
[1751137044214,0.94415014,107350.0,107340.0,0.37959135]
[1751137045359,1.34102207,107350.0,107340.0,0.21427135]
[1751137046894,1.32462207,107350.0,107340.0,0.21427135]
[1751137052398,0.94415014,107350.0,107340.0,0.61084328]
[1751137052784,0.94415014,107350.0,107340.0,0.24657135]
[1751137053023,1.30842207,107350.0,107340.0,0.24657135]
[1751137063131,0.94415014,107350.0,107340.0,0.24657135]
[1751137067328,0.94415014,107350.0,107340.0,0.23017135]
[1751137070788,1.30842207,107350.0,107340.0,0.23017135]
[1751137076090,1.30842207,107350.0,107340.0,0.21427135]
[1751137077021,0.94415014,107350.0,107340.0,0.21427135]
[1751137110353,0.95965014,107350.0,107340.0,0.21427135]
[1751137115564,1.32392207,107350.0,107340.0,0.21427135]
[1751137120276,0.95965014,107350.0,107340.0,0.21427135]
[1751137120490,1.32392207,107350.0,107340.0,0.21427135]
[1751137137396,0.95965014,107350.0,107340.0,0.21427135]
[1751137143483,0.99761014,107350.0,107340.0,0.21427135]
[1751137148185,1.36188207,107350.0,107340.0,0.21427135]
[1751137148613,1.34638207,107350.0,107340.0,0.21427135]
[1751137148852,0.98211014,107350.0,107340.0,0.21427135]
[1751137150122,0.94415014,107350.0,107340.0,0.21427135]
[1751137150325,0.94415014,107350.0,107340.0,0.57854328]
[1751137158251,0.94415014,107350.0,107340.0,0.21427135]
[1751137159490,1.30842207,107350.0,107340.0,0.21427135]
[1751137167030,0.94415014,107350.0,107340.0,0.21427135]
[1751137167774,0.9349,107350.0,107340.0,0.59494328]
[1751137168008,0.9349,107350.0,107340.0,0.61094328]
[1751137169048,0.9349,107350.0,107340.0,0.59494328]
[1751137169810,0.9349,107350.0,107340.0,0.60415578]
[1751137172836,0.9349,107350.0,107340.0,0.59494328]
[1751137173865,0.9349,107350.0,107340.0,0.60413865]
[1751137176127,0.9349,107350.0,107340.0,0.23986672]
[1751137176420,0.9349,107350.0,107340.0,0.23067135]
[1751137179196,0.9349,107350.0,107340.0,0.24020727]
[1751137180761,0.9349,107350.0,107340.0,0.21427135]
[1751137190476,0.9349,107350.0,107340.0,0.57854328]
[1751137193118,0.9508,107350.0,107340.0,0.57854328]
[1751137197957,0.9349,107350.0,107340.0,0.57854328]
[1751137204207,0.9349,107350.0,107340.0,0.21427135]
[1751137204449,0.9349,107350.0,107340.0,0.57854328]
[1751137204659,0.9509,107350.0,107340.0,0.57854328]
[1751137213428,0.94996842,107350.0,107340.0,0.57854328]
[1751137217633,0.94996842,107350.0,107340.0,0.21427135]
[1751137217837,0.94996842,107350.0,107340.0,0.57854328]
[1751137227970,0.94996842,107350.0,107340.0,0.21427135]
[1751137228170,0.93396842,107350.0,107340.0,0.57854328]
[1751137254242,0.94956842,107350.0,107340.0,0.57854328]
[1751137254579,0.94956842,107350.0,107340.0,0.72806328]
[1751137254753,0.94956842,107350.0,107340.0,0.36379135]
[1751137258353,0.93396842,107350.0,107340.0,0.36379135]
[1751137258758,0.93396842,107350.0,107340.0,0.72806328]
[1751137265161,0.93396842,107350.0,107340.0,0.74466328]
[1751137267008,0.93396842,107350.0,107340.0,0.72806328]
[1751137267616,0.93396842,107350.0,107340.0,0.36379135]
[1751137267817,0.93396842,107350.0,107340.0,0.72806328]
[1751137267993,0.93396842,107350.0,107340.0,0.36379135]
[1751137268217,0.93396842,107350.0,107340.0,0.72806328]
[1751137270066,0.93396842,107350.0,107340.0,0.72802328]
[1751137270397,0.94956842,107350.0,107340.0,0.72802328]
[1751137270686,0.94956842,107350.0,107340.0,0.36375135]
[1751137272011,0.94956842,107350.0,107340.0,0.72802328]
[1751137276700,0.93396842,107350.0,107340.0,0.72802328]
[1751137284192,0.94936842,107350.0,107340.0,0.72802328]
[1751137288701,0.93396842,107350.0,107340.0,0.72802328]
[1751137293965,0.93396842,107350.0,107340.0,0.36375135]
[1751137294144,0.95036842,107350.0,107340.0,0.72802328]
[1751137294508,0.95036842,107350.0,107340.0,0.36375135]
[1751137297254,0.95036842,107350.0,107340.0,0.72802328]
[1751137300434,0.95036842,107350.0,107340.0,0.36375135]
[1751137300775,1.31464035,107350.0,107340.0,0.36375135]
[1751137301004,1.33064035,107350.0,107340.0,0.36375135]
[1751137301815,1.31464035,107350.0,107340.0,0.36375135]
[1751137319882,0.95036842,107350.0,107340.0,0.72802328]
[1751137320728,0.95036842,107350.0,107340.0,0.36375135]
[1751137320977,1.31464035,107350.0,107340.0,0.36375135]
[1751137321215,1.31464035,107350.0,107340.0,0.21427135]
[1751137321454,1.43291505,107350.0,107340.0,0.36379135]
[1751137321655,1.42360043,107350.0,107340.0,0.36379135]
[1751137321863,1.44222977,107350.0,107340.0,0.36379135]
[1751137322270,1.45154465,107350.0,107340.0,0.36379135]
[1751137323391,1.44222977,107350.0,107340.0,0.36379135]
[1751137323682,1.44222968,107350.0,107340.0,0.36379135]
[1751137324297,1.45154448,107350.0,107340.0,0.36379135]
[1751137325872,1.46085945,107350.0,107340.0,0.36379135]
[1751137326871,1.45154448,107350.0,107340.0,0.36379135]
[1751137328532,1.46085945,107350.0,107340.0,0.36379135]
[1751137329701,1.45154448,107350.0,107340.0,0.36379135]
[1751137330710,1.46085945,107350.0,107340.0,0.36379135]
[1751137331100,1.45154448,107350.0,107340.0,0.36379135]
[1751137331313,1.46085936,107350.0,107340.0,0.36379135]
[1751137332756,1.07795775,107350.0,107340.0,0.36379135]
[1751137332960,1.44222968,107350.0,107340.0,0.36379135]
[1751137333275,1.45154448,107350.0,107340.0,0.36379135]
[1751137335645,1.48950448,107350.0,107340.0,0.36379135]
[1751137344066,1.47330448,107350.0,107340.0,0.36379135]
[1751137344389,1.10903255,107350.0,107340.0,0.36379135]
[1751137344590,1.47330448,107350.0,107340.0,0.36379135]
[1751137351171,1.48261936,107350.0,107340.0,0.36379135]
[1751137355612,1.49193433,107350.0,107340.0,0.36379135]
[1751137355793,1.48261936,107350.0,107340.0,0.36379135]
[1751137356821,1.49193433,107350.0,107340.0,0.36379135]
[1751137358362,1.48261936,107350.0,107340.0,0.36379135]
[1751137358612,1.48261936,107350.0,107340.0,0.18632383]
[1751137358613,1.6316669,107350.0,107340.0,0.18632383]
[1751137358829,0.03393125,107340.0,107330.0,0.36377132]
[1751137359066,0.49096326,107340.0,107330.0,0.36377132]
[1751137359728,0.50027919,107340.0,107330.0,0.36377132]
[1751137360370,0.50027919,107340.0,107330.0,0.36577132]
[1751137360892,0.5002791,107340.0,107330.0,0.36777132]
[1751137361962,0.49096326,107340.0,107330.0,0.36777132]
[1751137363839,0.5002791,107340.0,107330.0,0.36777132]
[1751137364461,0.50027901,107340.0,107330.0,0.36777132]
[1751137365071,0.86455094,107340.0,107330.0,0.36777132]
[1751137366109,0.50027901,107340.0,107330.0,0.36777132]
[1751137368359,0.49096326,107340.0,107330.0,0.36777132]
[1751137368765,0.5002791,107340.0,107330.0,0.36777132]
[1751137368967,0.49096326,107340.0,107330.0,0.36777132]
[1751137373903,0.52892326,107340.0,107330.0,0.36777132]
[1751137376587,0.13072008,107340.0,107330.0,0.36777132]
[1751137376798,0.5043075,107340.0,107330.0,0.36777132]
[1751137377650,0.51362317,107340.0,107330.0,0.36777132]
[1751137378723,0.5043075,107340.0,107330.0,0.36777132]
[1751137379183,0.51362317,107340.0,107330.0,0.36777132]
[1751137379516,0.51362308,107340.0,107330.0,0.36777132]
[1751137380568,0.52293875,107340.0,107330.0,0.36777132]
[1751137381679,0.51362308,107340.0,107330.0,0.36777132]
[1751137382722,0.52293883,107340.0,107330.0,0.36777132]
[1751137382939,0.52972308,107340.0,107330.0,0.36777132]
[1751137383776,0.53903883,107340.0,107330.0,0.36777132]
[1751137384020,0.52972308,107340.0,107330.0,0.36777132]
[1751137384213,0.53903883,107340.0,107330.0,0.36777132]
[1751137384425,0.52972308,107340.0,107330.0,0.36777132]
[1751137385748,0.51109201,107340.0,107330.0,0.36777132]
[1751137386175,0.49499201,107340.0,107330.0,0.36777132]
[1751137386612,0.5043075,107340.0,107330.0,0.36777132]
[1751137389203,0.13072008,107340.0,107330.0,0.36777132]
[1751137389618,0.49499201,107340.0,107330.0,0.36777132]
[1751137393472,0.49461934,107340.0,107330.0,0.36777132]
[1751137396145,0.13034741,107340.0,107330.0,0.36777132]
[1751137396418,0.49461934,107340.0,107330.0,0.36777132]
[1751137399347,0.50393483,107340.0,107330.0,0.36777132]
[1751137399763,0.5132505,107340.0,107330.0,0.36777132]
[1751137399970,0.50393483,107340.0,107330.0,0.36777132]
[1751137402645,0.49461934,107340.0,107330.0,0.36777132]
[1751137402855,0.50393483,107340.0,107330.0,0.36777132]
[1751137403374,0.49461934,107340.0,107330.0,0.36777132]
[1751137405347,0.50393483,107340.0,107330.0,0.36777132]
[1751137406462,0.50393475,107340.0,107330.0,0.36777132]
[1751137409268,0.49461934,107340.0,107330.0,0.36777132]
[1751137412761,0.50393483,107340.0,107330.0,0.36777132]
[1751137413377,0.49461934,107340.0,107330.0,0.36777132]
[1751137414757,0.50393483,107340.0,107330.0,0.36777132]
[1751137414958,0.50393475,107340.0,107330.0,0.36777132]
[1751137420536,0.13966282,107340.0,107330.0,0.36777132]
[1751137420733,0.49461934,107340.0,107330.0,0.36777132]
[1751137427843,0.50393483,107340.0,107330.0,0.36777132]
[1751137428273,0.49461934,107340.0,107330.0,0.36777132]
[1751137431022,0.50393475,107340.0,107330.0,0.36777132]
[1751137433885,0.49461934,107340.0,107330.0,0.36777132]
[1751137442228,0.63498304,107350.0,107340.0,0.21427135]
[1751137442496,1.59786976,107350.0,107340.0,0.21427135]
[1751137442710,1.44790976,107350.0,107340.0,0.21427135]
[1751137443361,1.45722464,107350.0,107340.0,0.21427135]
[1751137443573,1.48852456,107350.0,107340.0,0.21527135]